Cogmind - Beta 12 @@@ ROGUE MODE // 2023.12.06 @ 12:59:50 Player: Mozco Result: Self-destructed Performance ------------- Evolutions (7) 3500 Regions Visited (12) 2400 Robots Destroyed (177) 885 Value Destroyed (7320) 7320 Prototype IDs (30) 600 Alien Tech Used (0) 0 Bonus (4251) 4251 TOTAL SCORE: 18956 Bonus ------- High Alert Combat Kills 847 Follower Combat Kills 135 Met Warlord at Base 500 MAIN.C Attacked Warlord 500 Warlord Defense Kills 2294 Friendly Fire -25 Cogmind --------- Core Integrity 977/1300 Matter 125/300 Energy 49/100 System Corruption 21% Temperature Cool (0) Movement Treading (170) Location -3/Research Parts ------- > --- POWER (3) -------- (None) > --- PROPULSION (5) --- Armored Heavy Treads > --- UTILITY (10) ----- Advanced Cryofiber Web High-capacity Storage Unit Enhanced Optical Array Advanced Transmission Jammer > --- WEAPON (3) ------- (None) > --- INVENTORY (20) --- Improved Quantum Reactor Medium Treads Armored Medium Treads Armored Medium Treads Armored Medium Treads Advanced Cooling System Improved Targeting Computer Graphene Brace Matter Neutralizer Advanced Datajack Ionic Axe Peak State ------------ > --- POWER ------------ Particle Reactor Light Particle Reactor Micro Antimatter Reactor > --- PROPULSION ------- Medium Treads Improved Heavy Treads Spiked Heavy Treads > --- UTILITY ---------- Advanced Cryofiber Web Advanced Cooling System High-capacity Storage Unit Enhanced Optical Array Advanced Particle Charger Heavy Armor Plating Graphene Brace Advanced Shield Generator Improved Corruption Screen > --- WEAPON ----------- Matter Neutralizer Matter Neutralizer Micro-nuke Launcher > --- INVENTORY -------- Micro Fission Core Antimatter Reactor Light Antimatter Reactor Improved Quantum Reactor Medium Treads Armored Medium Treads Armored Medium Treads Armored Medium Treads Armored Heavy Treads Advanced Cooling System Advanced Signal Interpreter Hardened Heavy Armor Plating Improved Focal Shield Vortex Shotgun Vortex Shotgun Advanced Datajack Ionic Axe [Rating: 140] Favorites ----------- Power Micro Fission Core Engine Light Angular Momentum Engine Power Core Micro Fission Core Reactor Light Antimatter Reactor Propulsion Improved Heavy Treads Treads Improved Heavy Treads Leg Improved Titanium Leg Wheel Wheel Utility High-capacity Storage Unit Device Advanced Cryofiber Web Storage High-capacity Storage Unit Processor Advanced Targeting Computer Hackware Hacking Suite Protection Layered Heavy Armor Plating Weapon Matter Neutralizer Energy Gun Improved Medium Laser Energy Cannon Matter Neutralizer Ballistic Gun Assault Rifle Launcher Improved Proton Missile Launcher Impact Weapon Powered Hammer Slashing Weapon Ionic Axe Special Melee Weapon Advanced Datajack Build | -11 -10 -9 -8 -7 -6 -5 -4 -4 -4 -4 -3 -3 ------- Run | Jun Mat Mat Mat Fac Fac Fac Fac Upp Upp War Pro Res Slots Evolved 14 | . . 2 2 2 2 2 2 . . . . 2 Power 2 | . . . . 1 . . 1 . . . . . Propulsion 3 | . . 1 1 . . . . . . . . 1 Utility 8 | . . 1 1 1 1 2 1 . . . . 1 Weapon 1 | . . . . . 1 . . . . . . . Parts Attached 197 | 8 7 21 16 20 29 12 10 2 6 31 10 25 Power 30 | 2 . 2 1 2 4 . 3 . . 10 1 5 Engine 11 | 2 . 2 1 2 3 . 1 . . . . . Core 7 | . . . . . 1 . 1 . . 4 1 . Reactor 12 | . . . . . . . 1 . . 6 . 5 Propulsion 38 | 2 6 8 6 4 4 . 2 . . 3 . 3 Treads 28 | . 4 8 6 . 2 . 2 . . 3 . 3 Leg 6 | . . . . 4 2 . . . . . . . Wheel 4 | 2 2 . . . . . . . . . . . Hover . | . . . . . . . . . . . . . Flight . | . . . . . . . . . . . . . Utility 63 | 1 1 6 3 10 7 7 3 1 4 3 8 9 Device 33 | . . 2 1 4 5 3 2 1 1 1 7 6 Storage 2 | 1 . 1 . . . . . . . . . . Processor 5 | . . . . 2 1 1 . . . . . 1 Hackware 5 | . . 1 1 2 . 1 . . . . . . Protection 18 | . 1 2 1 2 1 2 1 . 3 2 1 2 Artifact . | . . . . . . . . . . . . . Weapon 66 | 3 . 5 6 4 14 5 2 1 2 15 1 8 Energy Gun 16 | 1 . 1 1 2 3 1 . . . 3 . 4 Energy Cannon 26 | . . 4 2 1 4 3 1 . 1 7 1 2 Ballistic Gun 3 | 2 . . . . 1 . . . . . . . Ballistic Cannon . | . . . . . . . . . . . . . Launcher 13 | . . . 3 1 3 1 . 1 . 3 . 1 Special Weapon . | . . . . . . . . . . . . . Impact Weapon 2 | . . . . . 2 . . . . . . . Slashing Weapon 4 | . . . . . . . 1 . 1 1 . 1 Piercing Weapon . | . . . . . . . . . . . . . Special Melee Weapon 2 | . . . . . 1 . . . . 1 . . Unidentified Prototypes 11 | . . 3 1 . 2 . 1 . . 3 . 1 Parts Lost 48 | . . 3 . 2 3 . . . 5 11 2 22 Power 11 | . . . . 1 1 . . . 2 3 . 4 Propulsion 6 | . . 1 . . . . . . . 1 . 4 Utility 18 | . . . . 1 1 . . . 3 4 2 7 Weapon 13 | . . 2 . . 1 . . . . 3 . 7 Highest Loss Streak 18 | . . 1 . 1 1 . . . 4 5 2 18 To Critical Strikes 1 | . . . . . . . . . . . . 1 Average Slot Usage (%) 86 | . 93 90 99 95 86 87 88 89 81 78 83 79 Engine 6 | . 14 10 9 12 8 5 7 5 2 2 . . Core 3 | . . . . . 3 5 5 5 5 6 2 . Reactor 2 | . . . . . . . 2 5 2 1 12 12 Treads 13 | . 22 29 35 6 11 11 9 10 10 10 10 12 Leg 2 | . . . . 23 3 . . . . . . . Device 14 | . . 6 9 9 16 17 18 21 15 14 17 20 Storage 6 | . 14 11 9 7 6 5 5 5 5 5 5 4 Processor 10 | . . . . 8 13 12 15 15 15 15 12 10 Hackware 2 | . . 6 9 4 . 3 . . . . . . Protection 5 | . 8 5 8 4 2 4 6 5 7 5 5 3 Energy Gun 3 | . 14 8 2 2 5 4 2 . . 1 . 1 Energy Cannon 10 | . . 10 15 12 8 8 12 10 10 8 14 7 Launcher 1 | . . . . . 1 . . 5 2 . . 2 Naked Turns . | . . . . . . . . . . . . . Heaviest Build 158 | 13 14 58 64 72 81 87 104 102 105 129 145 158 Greatest Support 178 | 26 40 60 80 80 150 150 150 150 150 150 150 178 Greatest Overweight (x) 2 | . . 1 . 2 1 . . . 1 1 . 1 Average Overweight (x) . | . . . . . . . . . . . . . Largest Inventory Capacity 20 | 8 8 20 20 20 20 20 20 20 20 20 20 20 Average Capacity 19 | 7 8 16 20 20 20 20 20 20 20 20 20 20 Most Carried 20 | 6 8 18 20 20 20 20 20 20 20 20 20 20 Average Carried 17 | 3 7 12 19 19 17 18 19 20 18 19 17 16 Final Capacity 20 | 8 8 20 20 20 20 20 20 20 20 20 20 20 Final Carried 20 | 6 8 17 20 19 19 19 20 20 20 20 16 11 Class Distribution -------------------- 60% | Mutant 16% | Scavenger-Mutant 6% | Skirmisher 4% | Scavenger-Tank 4% | Commander-Mutant 3% | Hacker-Mutant Dominant Class ---------------- Mutant | -10/Materials Mutant | -9/Materials Scavenger-Mutant | -8/Materials Mutant | -7/Factory Mutant | -6/Factory Mutant | -5/Factory Skirmisher | -4/Factory Mutant | -4/Upper Caves Mutant | -4/Upper Caves Mutant | -4/Warlord Scavenger-Tank | -3/Proximity Caves Scavenger-Mutant | -3/Research Resources | -11 -10 -9 -8 -7 -6 -5 -4 -4 -4 -4 -3 -3 ----------- Run | Jun Mat Mat Mat Fac Fac Fac Fac Upp Upp War Pro Res Matter Collected 2398 | 246 57 293 164 216 374 150 99 47 93 265 75 319 Remotely . | . . . . . . . . . . . . . Salvage Created 6313 | . 163 661 573 490 739 311 263 97 423 557 555 1481 Parts 297 | . 10 28 43 34 34 6 10 3 22 12 25 70 Haulers Intercepted 2 | . . 2 . . . . . . . . . . Recyclers Shooed 11 | . 2 . 3 3 . . . . . . . 3 Parts Field Recycled . | . . . . . . . . . . . . . Retrieved Matter . | . . . . . . . . . . . . . Parts Self-Destructed 37 | . . . . . . . . 2 8 . 27 . Prevented 11 | . . . . . . . . . 11 . . . Kills | -11 -10 -9 -8 -7 -6 -5 -4 -4 -4 -4 -3 -3 ------- Run | Jun Mat Mat Mat Fac Fac Fac Fac Upp Upp War Pro Res Combat Hostiles Destroyed 136 | . 6 13 18 13 11 4 3 4 7 16 11 30 Melee 7 | . . . . . 2 . . . 1 1 . 3 Guns 24 | . 6 6 1 1 . 3 1 . . 2 . 4 Cannons 41 | . . 7 9 5 2 . 2 1 . 1 9 5 AOE 53 | . . . 7 7 3 . . 3 3 12 . 18 Classes Destroyed 20 | . 2 4 3 3 2 . . . 1 4 1 . Worker 7 | . . . 1 2 . . . . . . . 4 Builder 12 | . . . . 1 2 . . . . . . 9 Tunneler 3 | . . . . 1 . . . . . . . 2 Hauler 2 | . . 2 . . . . . . . . . . Recycler 5 | . . . 1 1 1 . . . . . . 2 Mechanic 1 | . . . . . . . . . . 1 . . Operator 4 | . . 1 . 2 . 1 . . . . . . Watcher 7 | . . . . . 3 . 2 . . . . 2 Swarmer 45 | . 3 3 11 7 3 . . 4 3 . 6 5 Grunt 46 | . 3 6 2 3 4 . . . 3 8 1 16 Brawler 5 | . . 1 . . . . . . . 2 . 2 Duelist 3 | . . . . . 1 . . . . 1 . 1 Sentry 9 | . . 3 4 . . 2 . . . . . . Demolisher 2 | . . . . . . . . . . 2 . . Specialist 1 | . . . . . . . . . . 1 . . Hunter 6 | . . . 1 2 1 . . . . . . 2 Programmer 17 | . . . . 1 2 2 3 . 1 1 3 4 Behemoth 1 | . . . . . . . . . . . 1 . Striker 1 | . . . . . . . . . . 1 . . Samaritan 3 | . . . . . . . . . 1 . 2 . Best Kill Streak 41 | . 3 4 8 9 5 2 2 4 3 10 5 41 Combat Bots Only 23 | . 3 4 7 7 3 2 2 4 3 10 5 23 Max Kills in Single Turn 8 | . 1 1 3 3 3 1 1 3 2 8 1 5 Gunslinging . | . . . . . . . . . . . . . Exploded 8 | . . . 2 2 3 . . 3 2 8 . 2 Melee 1 | . . . . . 1 . . . 1 1 . 1 Uniques/NPCs Destroyed . | . . . . . . . . . . . . . Combat | -11 -10 -9 -8 -7 -6 -5 -4 -4 -4 -4 -3 -3 -------- Run | Jun Mat Mat Mat Fac Fac Fac Fac Upp Upp War Pro Res Damage Taken 14131 | . 362 738 709 1066 936 677 348 135 789 3488 759 4124 Core 1512 | . 72 61 101 125 121 81 41 21 36 530 . 323 Absorbed by Shields 1222 | . . . . . . . . . . 24 307 891 Redirected to Shielding 171 | . . . . 18 . . . . 102 51 . . Regen/Repaired (Parts) 827 | . . 592 77 . 144 . . . . 14 . . Core Remaining (%) 79 | 100 71 84 81 82 85 91 . . . . 45 . Volleys Fired 341 | . 27 52 40 42 23 21 20 2 15 15 35 49 Largest 3 | . 2 2 2 2 3 3 3 2 2 3 3 3 Hottest 315 | . 60 124 136 137 196 230 260 155 185 315 315 315 Shots Fired 603 | . 54 81 71 76 51 40 44 3 20 22 65 76 Gun 197 | . 54 43 5 11 24 21 15 . . 7 . 17 Cannon 359 | . . 38 60 57 26 19 29 2 12 10 65 41 Launcher 47 | . . . 6 8 1 . . 1 8 5 . 18 Special . | . . . . . . . . . . . . . Kinetic 31 | . 27 4 . . . . . . . . . . Thermal 470 | . 27 63 65 66 50 30 39 1 12 10 65 42 Explosive 26 | . . . . 8 . . . . . . . 18 Electromagnetic 48 | . . 14 6 2 1 10 5 2 8 . . . Entropic 28 | . . . . . . . . . . 12 . 16 Robot Hit Streak 30 | . 13 13 14 10 15 30 7 1 3 5 9 9 Robot Miss Streak 6 | . 2 6 2 4 4 1 5 1 2 2 5 6 Penetration Max . | . . . . . . . . . . . . . Secondary Targets 1 | . 1 . . . . . . . . . . . Max Gunslinging Chain 1 | . 1 . . . . . . . . . . . Shots Hit Robots 455 | . 39 55 48 47 56 36 25 1 14 33 38 63 Core Hits 291 | . 13 20 23 34 24 9 9 4 7 32 17 99 Critical Kills 3 | . . . . . . . . . . . 2 1 Critical Parts Destroyed 5 | . . . . . 4 . . . . . . 1 Critical Strikes 16 | . . 2 1 . 5 . 1 . 3 . 2 2 Burn 5 | . . 2 1 . 1 . 1 . . . . . Meltdown 3 | . . . . . . . . . . . 2 1 Smash 4 | . . . . . 4 . . . . . . . Sever 3 | . . . . . . . . . 3 . . . Detonate 1 | . . . . . . . . . . . . 1 Melee Attacks 64 | . . . . . 20 . . . 6 19 . 19 Impact 20 | . . . . . 20 . . . . . . . Slashing 32 | . . . . . . . . . 6 7 . 19 Piercing . | . . . . . . . . . . . . . Sneak Attacks 14 | . . . . . 1 . . . 1 12 . . Combat Hostiles . | . . . . . . . . . . . . . Follow-up Attacks . | . . . . . . . . . . . . . Damage Inflicted 22673 | . 474 1074 1308 1752 1965 1033 774 214 957 4342 1565 7215 Guns 3382 | . 474 458 69 169 325 501 220 . . 446 . 720 Cannons 7157 | . . 607 941 811 482 469 554 26 273 284 1565 1145 Explosions 10223 | . . . 264 726 314 63 . 188 440 3398 . 4830 Melee 1803 | . . . . . 839 . . . 244 200 . 520 Ramming 108 | . . 9 34 46 5 . . . . 14 . . Kinetic 299 | . 258 41 . . . . . . . . . . Thermal 8846 | . 216 771 1010 921 834 769 606 147 273 284 1565 1450 Explosive 5496 | . . . . 726 218 . . . . . . 4552 Electromagnetic 1584 | . . 253 264 59 69 264 168 67 440 . . . Impact 839 | . . . . . 839 . . . . . . . Slashing 964 | . . . . . . . . . 244 200 . 520 Piercing . | . . . . . . . . . . . . . Entropic 4537 | . . . . . . . . . . 3844 . 693 Highest Corruption 21 | . . . 1 1 7 . . . . . . 21 Average Corruption 4 | . . . 1 1 6 . . . . . . 16 Corruption Purged . | . . . . . . . . . . . . . Corruption Blocked 15 | . . . . . . 1 1 . 2 . 1 10 Effects 30 | . . . 3 2 20 . . . . . . 5 Message Errors 10 | . . . 2 . 6 . . . . . . 2 Matter Fused 6 | . . . . . 6 . . . . . . . Heat Flow Errors 4 | . . . . . 3 . . . . . . 1 Energy Discharges 4 | . . . 1 . 3 . . . . . . . Data Loss (minor) 2 | . . . . 1 1 . . . . . . . Data Loss (major) 2 | . . . . . 1 . . . . . . 1 Misfires 1 | . . . . 1 . . . . . . . . Misdirections 1 | . . . . . . . . . . . . 1 Overload Shots . | . . . . . . . . . . . . . Overflow Damage 845 | . . . 17 58 267 18 39 . 66 105 107 168 Projectiles 274 | . . . 6 38 . . 39 . 66 . 107 18 Explosions 292 | . . . 11 15 19 18 . . . 105 . 124 Melee 279 | . . . . 5 248 . . . . . . 26 Knockbacks 3 | . . . . . 3 . . . . . . . Impact 3 | . . . . . 3 . . . . . . . Kinetic . | . . . . . . . . . . . . . Secondary . | . . . . . . . . . . . . . Self-Inflicted Damage 437 | . . . 34 32 . 35 . 62 40 . . 234 Shots 11 | . . . 2 1 . 1 . 2 2 . . 3 Rammed 5 | . . 1 2 . 1 . . . . 1 . . Targets Rammed 8 | . . 1 3 2 1 . . . . 1 . . Kicked 2 | . . . . 2 . . . . . . . . Crushed 1 | . . . 1 . . . . . . . . . Highest Temperature 436 | . 162 240 201 120 254 220 312 51 136 381 436 85 Average Temperature 84 | . 70 79 58 37 97 124 99 31 67 117 115 51 Received Heat Transfer 2070 | . 234 315 198 81 261 54 . . 51 264 16 596 Siege Activations 1 | . . . . . . . . . . . 1 . Total Turns 2 | . . . . . . . . . . . 2 . Longest Duration 2 | . . . . . . . . . . . 2 . Robots Corrupted 4 | . . . . . . 1 . . 3 . . . Combat Hostiles 4 | . . . . . . 1 . . 3 . . . Parts Fried 12 | . . . . . 4 2 3 . 3 . . . Impact Corruptions 11 | . . . . 1 10 . . . . . . . Robots Melted 6 | . . 1 1 . 1 . . . . . 2 1 Combat Hostiles 4 | . . . 1 . 1 . . . . . 2 . Parts Melted 35 | . . 6 4 3 5 3 3 2 . . 7 2 Heat Transferred 13446 | . 500 1702 1887 1665 1645 1400 1174 200 348 296 1480 1149 Parts Sabotaged . | . . . . . . . . . . . . . Parts Stolen . | . . . . . . . . . . . . . Parts Stripped . | . . . . . . . . . . . . . Power Chain Reactions 5 | . . . 1 . 2 1 . 1 . . . . Missiles Intercepted . | . . . . . . . . . . . . . Alert | -11 -10 -9 -8 -7 -6 -5 -4 -4 -4 -4 -3 -3 ------- Run | Jun Mat Mat Mat Fac Fac Fac Fac Upp Upp War Pro Res Peak Influence 1124 | . 195 288 480 258 308 184 158 . . . . 1124 Initial 817 | . . 81 64 106 126 95 46 . . . . 817 Average 214 | . 125 182 204 129 161 73 54 . . . . 686 Maximum Alert Level 4 | . . 1 2 1 1 . . . . . . 4 Low Security (%) 64 | 100 100 52 54 78 67 100 100 . . . . . Level 1 22 | . . 47 37 21 32 . . . . . . 10 Level 2 6 | . . . 8 . . . . . . . . 38 Level 3 6 | . . . . . . . . . . . . 50 Level 4 . | . . . . . . . . . . . . 1 Level 5 . | . . . . . . . . . . . . . High Security . | . . . . . . . . . . . . . Max Security . | . . . . . . . . . . . . . Squads Dispatched 20 | . 1 . 2 5 5 1 1 . . . . 5 Investigation 1 | . . . . . 1 . . . . . . . Extermination 8 | . . . . 1 2 1 1 . . . . 3 Reinforcement 11 | . 1 . 2 4 2 . . . . . . 2 Assault . | . . . . . . . . . . . . . Garrison . | . . . . . . . . . . . . . Intercept . | . . . . . . . . . . . . . Searches Triggered 3 | . . . . . . . . . . . . 3 Construction Impeded 1 | . . . . 1 . . . . . . . . Haulers Reinforced . | . . . . . . . . . . . . . Active Scanning Responses . | . . . . . . . . . . . . . Cargo Convoy Interrupts . | . . . . . . . . . . . . . Stealth | -11 -10 -9 -8 -7 -6 -5 -4 -4 -4 -4 -3 -3 --------- Run | Jun Mat Mat Mat Fac Fac Fac Fac Upp Upp War Pro Res Distress Signals 6 | . . . 2 1 . . . . . . 1 2 Communications Jammed 65 | . . . . . 1 2 1 . . . . 61 Distress Signals 64 | . . . . . 1 2 . . . . . 61 Times Spotted 248 | . 8 18 27 21 18 6 8 4 14 50 22 52 Peak Tracking Total 13 | . 3 5 6 4 5 2 2 4 5 13 10 12 Tactical Retreats 13 | . . 1 1 . 2 . . . 5 . 1 3 Traps | -11 -10 -9 -8 -7 -6 -5 -4 -4 -4 -4 -3 -3 ------- Run | Jun Mat Mat Mat Fac Fac Fac Fac Upp Upp War Pro Res Traps Triggered 11 | . . . 4 3 3 . 1 . . . . . Indirectly 3 | . . . 3 . . . . . . . . . Trap Hack Attempts 17 | . . . . . 17 . . . . . . . Triggered . | . . . . . . . . . . . . . Disarmed . | . . . . . . . . . . . . . Reprogrammed 2 | . . . . . 2 . . . . . . . Reused . | . . . . . . . . . . . . . Traps Extracted . | . . . . . . . . . . . . . Installed . | . . . . . . . . . . . . . Triggered 10 | . . . . . . . . . . 9 1 . Machines | -11 -10 -9 -8 -7 -6 -5 -4 -4 -4 -4 -3 -3 ---------- Run | Jun Mat Mat Mat Fac Fac Fac Fac Upp Upp War Pro Res Machines Disabled 7 | . . . 4 1 1 . 1 . . . . . Max in Single Turn 2 | . . . 2 1 1 . 1 . . . . . Garrison Access 2 | . . . . . 1 . 1 . . . . . Machines Repaired . | . . . . . . . . . . . . . Machines Sabotaged . | . . . . . . . . . . . . . Overloaded Fab Kills . | . . . . . . . . . . . . . Hacking | -11 -10 -9 -8 -7 -6 -5 -4 -4 -4 -4 -3 -3 --------- Run | Jun Mat Mat Mat Fac Fac Fac Fac Upp Upp War Pro Res Machines Accessed 40 | . 2 5 8 6 6 4 3 . . 2 . 4 Terminals 18 | . 2 3 6 2 2 3 . . . . . . Fabricators 4 | . . . . 3 . . . . . . . 1 Repair Stations 6 | . . 2 1 . 2 1 . . . . . . Recycling Units . | . . . . . . . . . . . . . Scanalyzers 5 | . . . 1 . . . 2 . . . . 2 Garrison Access 5 | . . . . 1 2 . 1 . . . . 1 Total Hacks 123 | . 7 33 28 9 15 10 7 . . 7 . 7 Successful 79 | . 4 25 22 3 6 4 7 . . 7 . 1 Failed 43 | . 3 7 6 6 9 6 . . . . . 6 Catastrophic 10 | . 1 . 1 3 3 1 . . . . . 1 Database Lockouts 1 | . . 1 . . . . . . . . . . Manual 32 | . 2 9 12 1 4 4 . . . . . . Terminals 51 | . 7 10 18 4 3 9 . . . . . . Fabricators 5 | . . . . 3 . . . . . . . 2 Repair Stations 33 | . . 23 3 . 6 1 . . . . . . Recycling Units . | . . . . . . . . . . . . . Scanalyzers 17 | . . . 7 . . . 6 . . . . 4 Garrison Access 10 | . . . . 2 6 . 1 . . . . 1 Terminal Hacks 24 | . 2 3 9 1 . 2 . . . 7 . . Part Schematic 1 | . . . . 1 . . . . . . . . Robot Analysis 2 | . 1 1 . . . . . . . . . . Prototype ID Bank 7 | . . . 1 . . . . . . 6 . . Open Door 1 | . . . . . . . . . . 1 . . Terminal Index 1 | . . . 1 . . . . . . . . . Alert Level 2 | . . . 1 . . 1 . . . . . . Unreport Threat 2 | . . . 2 . . . . . . . . . Zone Layout 8 | . 1 2 4 . . 1 . . . . . . Fabricator Hacks 2 | . . . . 2 . . . . . . . . Network Status 1 | . . . . 1 . . . . . . . . Build 1 | . . . . 1 . . . . . . . . Repair Station Hacks 26 | . . 20 2 . 4 . . . . . . . Scan Component 13 | . . 10 1 . 2 . . . . . . . Repair 13 | . . 10 1 . 2 . . . . . . . Recycling Unit Hacks . | . . . . . . . . . . . . . Scanalyzer 14 | . . . 7 . . . 6 . . . . 1 Insert Component 6 | . . . 3 . . . 2 . . . . 1 Analyze 8 | . . . 4 . . . 4 . . . . . Garrison Access Hacks 3 | . . . . . 2 . 1 . . . . . Seal Access 2 | . . . . . 1 . 1 . . . . . Coupler Status 1 | . . . . . 1 . . . . . . . Unauthorized Hacks 10 | . 2 2 4 . . 2 . . . . . . Terminals 10 | . 2 2 4 . . 2 . . . . . . Botnet 10 | . 2 2 4 . . 2 . . . . . . Fabricators . | . . . . . . . . . . . . . Repair Stations . | . . . . . . . . . . . . . Recycling Units . | . . . . . . . . . . . . . Scanalyzers . | . . . . . . . . . . . . . Garrison Access . | . . . . . . . . . . . . . Data Cores Recovered 2 | . . 1 . . . 1 . . . . . . Used 2 | . . 1 . . . 1 . . . . . . Hacking Detections 35 | . 2 4 8 5 6 4 2 . . . . 4 Full Trace Events 1 | . . . . . 1 . . . . . . . Feedback Events . | . . . . . . . . . . . . . Feedback Blocked . | . . . . . . . . . . . . . Robot Schematics Acquired . | . . . . . . . . . . . . . Robots Built . | . . . . . . . . . . . . . Authchips . | . . . . . . . . . . . . . Time . | . . . . . . . . . . . . . Total Robot Build Rating . | . . . . . . . . . . . . . Part Schematics Acquired 6 | . . . 3 1 . . 2 . . . . . Parts Built 2 | . . . . 2 . . . . . . . . Authchips . | . . . . . . . . . . . . . Time 95 | . . . . 95 . . . . . . . . Total Part Build Rating 10 | . . . . 10 . . . . . . . . Parts Repaired 13 | . . 10 1 . 2 . . . . . . . Time 399 | . . 301 38 . 60 . . . . . . . Parts Recycled . | . . . . . . . . . . . . . Recycled Matter . | . . . . . . . . . . . . . Retrieved Matter . | . . . . . . . . . . . . . Retrieved Components . | . . . . . . . . . . . . . Parts Scanalyzed 6 | . . . 3 . . . 2 . . . . 1 Part Schematics Acquired 5 | . . . 3 . . . 2 . . . . . Parts Damaged 1 | . . . 1 . . . . . . . . . Bothacking | -11 -10 -9 -8 -7 -6 -5 -4 -4 -4 -4 -3 -3 ------------ Run | Jun Mat Mat Mat Fac Fac Fac Fac Upp Upp War Pro Res Used RIF Installer . | . . . . . . . . . . . . . Robots Hacked 2 | . . . . . . . . . . 2 . . Non-combat . | . . . . . . . . . . . . . Combat 2 | . . . . . . . . . . 2 . . Robot Hacks Applied 3 | . . . . . . . . . . 3 . . parse_system 3 | . . . . . . . . . . 3 . . Relay Couplers Released . | . . . . . . . . . . . . . Fabnet Peak Effective % . | . . . . . . . . . . . . . Robots Rewired 5 | . . . . . . . . . . 5 . . Allies Hacked . | . . . . . . . . . . . . . Hacks Repelled . | . . . . . . . . . . . . . Allies | -11 -10 -9 -8 -7 -6 -5 -4 -4 -4 -4 -3 -3 -------- Run | Jun Mat Mat Mat Fac Fac Fac Fac Upp Upp War Pro Res Total Allies 8 | . . . . 3 . . . . . 5 . . Largest Group 5 | . . . . 3 3 . . . . 5 . . Highest-Rated Group 286 | . . . . 93 93 . . . . 286 . . Highest-Rated Ally 65 | . . . . 31 31 . . . . 65 . . Total Orders . | . . . . . . . . . . . . . Ally Attacks 20 | . . . . 6 5 . . . . 9 . . Total Damage 529 | . . . . 43 48 . . . . 438 . . Kills 2 | . . . . . . . . . . 2 . . Allies Corrupted . | . . . . . . . . . . . . . Allies Melted . | . . . . . . . . . . . . . Intel | -11 -10 -9 -8 -7 -6 -5 -4 -4 -4 -4 -3 -3 ------- Run | Jun Mat Mat Mat Fac Fac Fac Fac Upp Upp War Pro Res Robot Analysis Total 2 | . 1 1 . . . . . . . . . . Derelict Logs Recovered 2 | . . . . . . . . 1 1 . . . Drone Launches . | . . . . . . . . . . . . . Drone Recoveries . | . . . . . . . . . . . . . Exploration | -11 -10 -9 -8 -7 -6 -5 -4 -4 -4 -4 -3 -3 ------------- Run | Jun Mat Mat Mat Fac Fac Fac Fac Upp Upp War Pro Res Turns Passed 11207 | 67 274 1042 777 1084 1462 703 774 796 902 1833 491 1002 Spaces Moved 5673 | 53 126 346 362 639 680 385 419 493 459 1035 236 440 Core 1 | 1 . . . . . . . . . . . . Treads 4926 | . 95 346 362 105 551 385 419 493 459 1035 236 440 Legs 663 | . . . . 534 129 . . . . . . . Wheels 83 | 52 31 . . . . . . . . . . . Hover . | . . . . . . . . . . . . . Flight . | . . . . . . . . . . . . . Fastest Speed 50 | 50 90 160 160 130 130 160 160 160 160 160 160 160 Average Speed 157 | 91 142 166 161 135 154 160 160 160 161 160 160 174 Slowest Speed 330 | 100 160 240 162 330 240 160 160 160 240 240 160 260 Overloaded Moves . | . . . . . . . . . . . . . Propulsion Burnouts . | . . . . . . . . . . . . . Robots Hopped . | . . . . . . . . . . . . . Cave-ins Triggered . | . . . . . . . . . . . . . Exploration Rate (%) 35 | 3 25 27 37 21 25 11 11 71 70 92 47 16 Regions Visited 12 Branch Regions 4 Pre-discovered Areas 1 | . . . . . . . . 1 . . . . Known Exits Taken . | . . . . . . . . . . . . . Unknown Exits Taken 12 | 1 1 1 1 1 1 1 1 1 1 1 1 . Scrap Searched 4 | . . . . . . . . 1 1 . 2 . Spaces Dug 23 | . . . . 13 . . . 10 . . . . Terrain Destroyed 381 | . . . 30 21 17 4 2 10 2 115 23 157 Melee . | . . . . . . . . . . . . . Projectile 41 | . . . . . 1 . 2 . 2 3 23 10 AOE 340 | . . . 30 21 16 4 . 10 . 112 . 147 Terrain Rammed . | . . . . . . . . . . . . . Walls Destroyed . | . . . . . . . . . . . . . Machines Disabled . | . . . . . . . . . . . . . Actions | -11 -10 -9 -8 -7 -6 -5 -4 -4 -4 -4 -3 -3 --------- Run | Jun Mat Mat Mat Fac Fac Fac Fac Upp Upp War Pro Res Total 7293 | 67 163 723 482 781 1012 438 488 496 587 1193 291 572 Wait 769 | 2 2 283 45 46 212 2 12 . 97 41 9 18 Move 5661 | 52 125 345 361 638 679 384 418 492 458 1034 235 440 Hop . | . . . . . . . . . . . . . Pick Up 111 | 5 1 15 7 15 10 10 13 . 4 21 . 10 Fast Attach 65 | 6 2 10 4 8 8 . 2 . . 17 2 6 Attach 50 | . . 2 3 3 5 5 5 . 3 8 3 13 Detach 8 | . 1 . 2 1 1 1 1 . . . . 1 Swap 82 | 2 5 9 9 9 16 7 3 2 3 6 5 6 Drop 117 | . . 6 8 17 20 8 14 . 1 31 2 10 Fire 341 | . 27 52 40 42 23 21 20 2 15 15 35 49 Melee 64 | . . . . . 20 . . . 6 19 . 19 Ram . | . . . . . . . . . . . . . Kick 2 | . . . . 2 . . . . . . . . Crush 6 | . . 1 3 . 1 . . . . 1 . . Escape Stasis . | . . . . . . . . . . . . . Rewire . | . . . . . . . . . . . . . Trap 17 | . . . . . 17 . . . . . . . Miscellaneous . | . . . . . . . . . . . . . Route ------- -11/Junkyard -10/Materials -9/Materials -8/Materials -7/Factory -6/Factory -5/Factory -4/Factory -4/Upper Caves -4/Upper Caves -4/Warlord -3/Proximity Caves -3/Research History --------- Turn | Location | Event 17 | -11/Junkyard | Discovered new exit (range 15) 68 | -11/Junkyard | Entered Materials 192 | -10/Materials | Discovered new exit (range 17) 303 | -10/Materials | Build established: Mutant 342 | -10/Materials | Entered another Materials area 342 | -9/Materials | Evolved 2 slots: Propulsion x1, Utility x1 378 | -9/Materials | Repaired Ion Engine? 1003 | -9/Materials | Discovered new exit (range 16) 1004 | -9/Materials | Central database locked down 1066 | -9/Materials | Repaired Lgt. Treads 1093 | -9/Materials | Repaired Lgt. Treads 1121 | -9/Materials | Repaired Lgt. Treads 1148 | -9/Materials | Repaired Lgt. Treads 1152 | -9/Materials | Build established: Scavenger-Mutant 1200 | -9/Materials | Repaired Adv. Beam Cannon 1237 | -9/Materials | Repaired Corrupted Lgt. Treads 1264 | -9/Materials | Repaired Lgt. Treads 1291 | -9/Materials | Repaired Lgt. Treads 1324 | -9/Materials | Repaired Hrd. Light Armor Plating 1384 | -9/Materials | Entered another Materials area 1384 | -8/Materials | Evolved 2 slots: Propulsion x1, Utility x1 1654 | -8/Materials | Destroyed 7 combat bots 1856 | -8/Materials | Repaired Arm. Treads 2006 | -8/Materials | Discovered new exit (range 17) 2161 | -8/Materials | Entered Factory 2161 | -7/Factory | Evolved 2 slots: Power x1, Utility x1 2426 | -7/Factory | Build established: Hacker-Mutant 2787 | -7/Factory | Build established: Mutant 2850 | -7/Factory | Fabricated Flexi-carbon Leg (x2) 3161 | -7/Factory | Destroyed 7 combat bots 3221 | -7/Factory | Discovered new exit (range 17) 3238 | -7/Factory | Allied Derelicts emerged from ambush trap array 3245 | -7/Factory | Entered another Factory area 3245 | -6/Factory | Accompanied by 3 allies 3245 | -6/Factory | Evolved 2 slots: Utility x1, Weapon x1 3287 | -6/Factory | Repaired Imp. Titanium Leg 3373 | -6/Factory | Spotted B-75 Beast 3661 | -6/Factory | Build established: Skirmisher 3920 | -6/Factory | Repaired Broken Adv. EMP Blaster 4294 | -6/Factory | Build established: Mutant 4694 | -6/Factory | Discovered new exit (range 9) 4707 | -6/Factory | Entered another Factory area 4707 | -5/Factory | Evolved 2 slots: Utility x2 5386 | -5/Factory | Discovered new exit (range 6) 5410 | -5/Factory | Entered another Factory area 5410 | -4/Factory | Evolved 2 slots: Power x1, Utility x1 6109 | -4/Factory | Discovered new exit (range 13) 6184 | -4/Factory | Entered Upper Caves 6221 | -4/Upper Caves | Learned location of Quarantine (-2) 6962 | -4/Upper Caves | Discovered new exit (range 12) 6980 | -4/Upper Caves | Entered another Upper Caves area 7084 | -4/Upper Caves | Learned Research emergency access door positions 7514 | -4/Upper Caves | Lost 4 parts (2p2u) 7768 | -4/Upper Caves | Discovered new exit (range 7) 7882 | -4/Upper Caves | Entered Warlord 8784 | -4/Warlord | Met Warlord 8809 | -4/Warlord | Warlord's base attacked by MAIN.C 9129 | -4/Warlord | Found Prototype Energy Gun 9129 | -4/Warlord | Identified Vortex Shotgun 9133 | -4/Warlord | Found Prototype Launcher 9133 | -4/Warlord | Identified Vortex Catalyst Activator 9141 | -4/Warlord | Found Vortex Shotgun 9159 | -4/Warlord | Warlord forces counterattacked 9178 | -4/Warlord | Build established: Commander-Mutant 9277 | -4/Warlord | Spotted Executioner 9288 | -4/Warlord | Allies destroyed Executioner 9334 | -4/Warlord | Spotted Executioner 9345 | -4/Warlord | Spotted Striker 9427 | -4/Warlord | Spotted Executioner 9427 | -4/Warlord | Spotted Striker 9430 | -4/Warlord | Lost 4 parts (1p1u2w) 9455 | -4/Warlord | Destroyed 10 combat bots 9475 | -4/Warlord | Destroyed Striker 9484 | -4/Warlord | Warlord base infiltrated, sounded retreat 9495 | -4/Warlord | Lost 5 parts (2p2u1w) 9505 | -4/Warlord | Core integrity fell below 50% 9545 | -4/Warlord | Spotted Executioner 9642 | -4/Warlord | Spotted Striker 9652 | -4/Warlord | Spotted B-90 Cyclops 9652 | -4/Warlord | Spotted B-86 Titan 9658 | -4/Warlord | Spotted Striker 9671 | -4/Warlord | Discovered new exit (range 20) 9710 | -4/Warlord | Spotted Executioner 9715 | -4/Warlord | Entered Proximity Caves 9717 | -3/Proximity Caves | Spotter reported a threat 9719 | -3/Proximity Caves | Spotter reported a threat 9929 | -3/Proximity Caves | Spotter reported a threat 10011 | -3/Proximity Caves | Spotter reported a threat 10111 | -3/Proximity Caves | Spotted B-86 Titan 10113 | -3/Proximity Caves | Spotter reported a threat 10116 | -3/Proximity Caves | Destroyed B-86 Titan 10144 | -3/Proximity Caves | Discovered new exit (range 20) 10206 | -3/Proximity Caves | Entered Research 10206 | -3/Research | Evolved 2 slots: Propulsion x1, Utility x1 10422 | -3/Research | Build established: Scavenger-Tank 10481 | -3/Research | Search patrols dispatched 10518 | -3/Research | Lost 3 parts (1n1u1w) 10706 | -3/Research | Search patrols dispatched 10725 | -3/Research | Build established: Scavenger-Mutant 10956 | -3/Research | Search patrols dispatched 11157 | -3/Research | System corruption reached 10% 11186 | -3/Research | Destroyed 23 combat bots 11208 | -3/Research | Self-destructed Last Messages --------------- 11178_ K-01 Serf collects debris. 11178_ U-05 Engineer lays Concrete. 11179_ K-01 Serf collects debris. 11179_ U-05 Engineer builds a Wall. 11180_ The unstable cave ceiling collapses. 11180_ K-01 Serf destroyed. 11180_ W-44 Eye destroyed. 11181_ K-01 Serf collects debris. 11185_ K-01 Serf destroyed. 11186_ The unstable cave ceiling collapses. 11186_ K-01 Serf collects debris. 11187_ The unstable cave ceiling collapses. 11188_ Vortex Shotgun destroyed. 11190_ K-01 Serf collects debris. 11193_ The unstable cave ceiling collapses. 11193_ K-01 Serf collects debris. 11193_ Quantum Rifle destroyed. 11194_ Door malfunctions. 11197_ System corrupted: Substantial component data lost. 11206_ ALERT: Rogue bot located, Programmers report to Research Zone 6Z. Map ----- +----------------------------------------------------+ | ?????????????????? | | ???????????????????? = % | | ?????????????????????????# # #%# #### | | ?????????????????????????# # | | ?????????????????????????# # | | ?????????????????????????# ""?# % * | | ?????????????????????????# T"?# %*%!% | | ?????????????????????????# ""?# = = [ ! | | ?????????????????????????# ?# ! | | ?????????????????????????# ?# ##+ | | ?????????????????????????# ## ! # | | ?????????????????????????# # [ | | ?????????????????????????# # | | ?????????????????????????# ! # | | ?????????????????????????# %= #[[[ | | ?????????????????????????# % ! +[[ | | ?????????????????????????####### # = #[[ | | ???????????????????????????# ## # | | ???????????????????????????# /%###?########### | | ?????????????##########????# # #?############# | | ????????????? w ??### # #?# | | ??????????????? ?# / # T?# | | ???????????????""" """ ?# ####### ?# """ """ | | ?????????????? """ """ # ####### ### """ """ | | ????????????# """ """ #p # """ """ | | ????????????# @ # | | ????????????# # + | | ????????????# """ # # """ """ | | ????????????# """ ?# ###### # """ """ | | ????????????# """ ?# #????#+# """ """ | | ????????????# ??# #??? # | | ????????????# Y ??# #? # | | ????????????### ######???# k# ###########+# | | ??????????????#??????????# # #?????????# # | | ?????????????????????????+ + #?????????# # | | ????????????????+????????# # #?????????# # | | ?????????????????????????# # #??????####+# | | ?????????????????????????# ############### | | ?????????????????????????# # | | ?????????????????????????# # | | ?????????????????????????# # | | ?????????????????????????# """ """ ###### | | ?????????????????????????# """ """ #????# | | ?????????????????????????# """ """ #????# | | ?????????????############# ###### | | ????? ???? | | ????? ??? | | ????? ??? | | ????? ??? | | ????? #????????????###########+###"" ""######## | +----------------------------------------------------+ Best States ------------- Heat Dissipation 108 Energy Generation 61 Energy Capacity 645 Matter Stores 300 Matter Capacity 300 Sight Range 22 Robot Scan Range 18 Terrain Scan Density 10 Jamming Range 16 Base Temperature (-) 200 EM Shielding 2 Corruption Block 15 Armor Coverage 600 Resistance: KI 25 Resistance: EM 25 Propulsion Shielding 33 Utility Shielding 33 Weapon Shielding 66 Evasion (%) 59 Targeting Accuracy 8 Recoil Reduction 5 Particle Charging 25 Offensive Hacking 20 Defensive Hacking 10 Item Schematics ----------------- Arm. Treads | -8/Materials | Scanalyzed Adv. Targeting Computer | -8/Materials | Scanalyzed Adv. EMP Blaster | -8/Materials | Scanalyzed Lrn. Proton Cannon | -7/Factory | Hacked Imp. Heavy Treads | -4/Factory | Scanalyzed Adv. Cryofiber Web | -4/Factory | Scanalyzed Robot Schematics ------------------ None Fabricated ------------ Flexi-carbon Leg | x2 | -7/Factory | Preloaded Alien Tech Used ----------------- None Achievements -------------- None Challenges ------------ None Game ------ Seed SuperchargedSiegeVibroblade Manual? 0 Play Time 01:56:46 Cumulative 122.1 hours Start 2023.12.06 @ 11:06:31 End 2023.12.06 @ 12:59:50 Sessions 1 Manual Loads 0 Difficulty Rogue Special Mode None Game No. 97 Rogue 94 Adventurer 3 Explorer 0 Win Type - Total 0 Types 0/0/0/0/0/0/0/0/0 Lore% 64 Gallery% 71 Achievement% 55 Wizard Run 0 Options --------- ASCII 0 Keyboard 0 Movement Mouse Keybinds 0 Fullscreen 2 Font 18/SmallcapsGlow Map View 76x50 Tactical HUD 1 Map Filters NONE Filters NONE Steam 1 RUN: 0d822dc8-4c2b-4cc5-9c66-7167abbc624c